bitfinex/quotes_SOLUSD_20230120
["timestamp","ask_amount","ask_price","bid_price","bid_amount"]
[1674229405588,37.0,21.469,21.452,10.0]
[1674229405884,66.45710081,21.468,21.441,118.9682]
[1674229406112,20.96,21.467,21.442,34.98]
[1674229406306,19.71,21.46,21.442,44.98]
[1674229406626,34.96,21.459,21.442,10.0]
[1674229406818,66.47710081,21.459,21.442,10.0]
[1674229407024,31.51710081,21.458,21.442,10.0]
[1674229407239,34.96,21.457,21.442,10.0]
[1674229407445,0.96,21.456,21.442,10.0]
[1674229408198,0.96,21.456,21.44,34.99]
[1674229408392,89.26107366,21.455,21.432,35.0]
[1674229408936,105.81817447,21.454,21.433,10.0]
[1674229409140,34.97,21.453,21.434,35.0]
[1674229409360,20.0,21.452,21.434,35.0]
[1674229409553,20.0,21.452,21.435,10.0]
[1674229409971,34.97,21.451,21.436,34.99]
[1674229410192,20.0,21.45,21.435,10.0]
[1674229411038,39.71,21.45,21.435,10.0]
[1674229411566,34.97,21.449,21.435,10.0]
[1674229412208,34.97,21.449,21.436,17.0]
[1674229418397,34.97,21.449,21.433,10.0]
[1674229419234,34.97,21.449,21.433,45.0]
[1674229419446,128.3706,21.45,21.433,45.0]
[1674229419668,34.97,21.449,21.434,17.0]
[1674229421146,0.96,21.448,21.434,17.0]
[1674229424924,34.98,21.447,21.432,17.0]
[1674229425144,0.96,21.446,21.432,17.0]
[1674229425667,34.98,21.447,21.432,17.0]
[1674229425886,128.3706,21.45,21.433,45.0]
[1674229426095,128.3706,21.45,21.434,17.0]
[1674229426509,128.3706,21.45,21.435,10.0]
[1674229426711,128.3706,21.45,21.436,17.0]
[1674229426930,0.96,21.449,21.436,17.0]
[1674229429557,35.93,21.449,21.436,17.0]
[1674229429753,0.96,21.449,21.436,17.0]
[1674229430597,10.96,21.449,21.436,17.0]
[1674229431455,0.96,21.449,21.436,17.0]
[1674229432270,0.96,21.449,21.437,10.0]
[1674229432504,0.96,21.449,21.438,17.0]
[1674229433212,20.0,21.45,21.438,17.0]
[1674229433428,20.0,21.452,21.439,10.0]
[1674229433639,20.0,21.452,21.44,17.0]
[1674229434711,34.97,21.451,21.44,17.0]
[1674229434900,20.0,21.45,21.44,17.0]
[1674229435111,0.96,21.449,21.438,17.0]
[1674229435656,0.96,21.448,21.438,17.0]
[1674229436891,20.0,21.45,21.438,17.0]
[1674229437102,0.96,21.449,21.438,17.0]
[1674229438048,0.96,21.449,21.437,17.0]
[1674229438258,51.70774033,21.449,21.437,17.0]
[1674229439099,51.70774033,21.449,21.433,45.0]
[1674229439311,44.97,21.448,21.433,10.0]
[1674229439533,34.97,21.448,21.433,10.0]
[1674229439733,60.74774033,21.447,21.433,10.0]
[1674229440057,50.74774033,21.446,21.433,10.0]
[1674229440467,50.74774033,21.446,21.434,17.0]
[1674229441102,50.74774033,21.446,21.435,10.0]
[1674229441430,130.4199,21.45,21.436,17.0]
[1674229441633,130.4199,21.45,21.438,10.0]
[1674229441851,130.4199,21.45,21.439,17.0]
[1674229442259,130.4199,21.45,21.436,34.99]
[1674229442486,34.97,21.449,21.435,10.0]
[1674229442690,176.72846747,21.45,21.435,10.0]
[1674229442889,0.96,21.449,21.435,10.0]
[1674229443636,35.93,21.449,21.436,17.0]
[1674229443845,0.96,21.449,21.435,10.0]
[1674229444053,51.70774033,21.449,21.435,10.0]
[1674229444388,10.0,21.448,21.432,45.0]
[1674229444584,0.96,21.447,21.432,10.0]
[1674229444900,35.94,21.447,21.432,10.0]
[1674229445110,50.74774033,21.446,21.432,10.0]
[1674229446979,50.74774033,21.446,21.433,17.0]
[1674229447638,34.98,21.447,21.433,17.0]
[1674229448266,85.72774033,21.447,21.433,17.0]
[1674229448892,85.72774033,21.447,21.433,52.0]
[1674229449093,50.74774033,21.447,21.433,17.0]
[1674229450552,44.98,21.446,21.433,17.0]
[1674229450764,44.98,21.446,21.432,17.0]
[1674229451075,60.74774033,21.446,21.432,17.0]
[1674229451283,50.74774033,21.446,21.432,17.0]
[1674229451514,85.72774033,21.446,21.432,27.0]
[1674229451928,85.72774033,21.446,21.433,10.0]
[1674229451929,50.74774033,21.446,21.433,10.0]
[1674229452348,50.74774033,21.446,21.434,17.0]
[1674229452564,50.74774033,21.446,21.435,10.0]
[1674229452760,50.74774033,21.446,21.437,10.0]
[1674229452970,73.79160995,21.449,21.437,10.0]
[1674229453175,73.79160995,21.449,21.438,17.0]
[1674229453618,73.79160995,21.449,21.435,10.0]
[1674229453827,34.97,21.448,21.435,10.0]
[1674229454227,85.71774033,21.448,21.435,10.0]
[1674229454450,85.71774033,21.448,21.436,17.0]
[1674229454662,20.0,21.45,21.437,10.0]
[1674229454878,34.96,21.458,21.438,17.0]
[1674229454879,94.82578523,21.455,21.438,17.0]
[1674229455101,54.97,21.454,21.438,17.0]
[1674229455296,149.79578523,21.454,21.438,17.0]
[1674229455506,44.0780449,21.453,21.438,17.0]
[1674229455712,54.97,21.452,21.438,17.0]
[1674229456259,54.97,21.452,21.437,10.0]
[1674229456575,14.84,21.45,21.437,10.0]
[1674229456784,54.97,21.449,21.437,10.0]
[1674229456967,105.71774033,21.449,21.437,10.0]
[1674229457186,54.97,21.449,21.435,10.0]
[1674229457523,50.74774033,21.448,21.436,17.0]
[1674229457720,34.98,21.447,21.436,17.0]
[1674229458141,85.72774033,21.447,21.436,17.0]
[1674229458336,50.74774033,21.447,21.436,17.0]
[1674229458542,94.82578523,21.447,21.434,10.0]
[1674229458768,34.98,21.446,21.433,10.0]
[1674229459195,85.72774033,21.446,21.433,10.0]
[1674229460037,85.72774033,21.446,21.434,17.0]
[1674229460445,85.72774033,21.446,21.433,10.0]
[1674229462354,85.72774033,21.446,21.434,17.0]
[1674229463405,85.72774033,21.446,21.435,10.0]
[1674229463603,50.74774033,21.446,21.436,17.0]
[1674229464654,50.74774033,21.446,21.435,10.0]
[1674229466038,50.74774033,21.446,21.436,17.0]
[1674229466231,50.74774033,21.446,21.437,10.0]
[1674229466563,20.0,21.449,21.438,17.0]
[1674229466873,20.0,21.449,21.437,10.0]
[1674229467084,54.97,21.449,21.437,10.0]
[1674229467281,54.97,21.449,21.438,17.0]
[1674229467488,20.0,21.449,21.436,17.0]
[1674229468132,0.96,21.448,21.436,17.0]
[1674229471899,0.96,21.448,21.435,10.0]
[1674229472113,34.98,21.447,21.435,10.0]
[1674229472651,34.97,21.448,21.435,10.0]
[1674229475069,80.94076033,21.448,21.435,10.0]
[1674229475384,10.0,21.447,21.433,10.0]
[1674229475595,34.98,21.446,21.434,17.0]
[1674229476331,10.0,21.445,21.431,118.9682]
[1674229477160,34.98,21.446,21.431,118.9682]
[1674229477576,109.74720163,21.446,21.43,10.0]
[1674229477792,20.0,21.445,21.43,10.0]
[1674229478000,34.98,21.444,21.429,10.0]
[1674229478207,14.84,21.44,21.424,10.0]
[1674229478413,55.95,21.439,21.424,10.0]
[1674229480526,55.95,21.439,21.425,17.0]
[1674229481164,172.6205,21.439,21.425,17.0]
[1674229482633,137.6305,21.439,21.425,17.0]
[1674229483181,172.6205,21.439,21.425,17.0]
[1674229484002,172.6205,21.439,21.426,10.0]
[1674229484213,172.6205,21.439,21.427,17.0]
[1674229484523,137.6305,21.439,21.427,17.0]
[1674229486423,137.6305,21.439,21.426,10.0]
[1674229487278,20.96,21.439,21.426,10.0]
[1674229487490,0.96,21.439,21.426,10.0]
[1674229487713,34.99,21.441,21.426,10.0]
[1674229487888,20.0,21.44,21.427,17.0]
[1674229488094,34.99,21.439,21.427,17.0]
[1674229488345,20.0,21.438,21.427,17.0]
[1674229488535,20.0,21.438,21.426,10.0]
[1674229488747,34.99,21.437,21.426,10.0]
[1674229488939,34.99,21.439,21.424,10.0]
[1674229489147,20.96,21.438,21.424,10.0]
[1674229489359,34.99,21.437,21.424,10.0]
[1674229489678,0.96,21.436,21.423,10.0]
[1674229489993,35.0,21.435,21.423,10.0]
[1674229490535,34.99,21.437,21.422,10.0]
[1674229491263,34.99,21.437,21.424,10.0]
[1674229491480,34.99,21.437,21.425,17.0]
[1674229491796,34.99,21.437,21.422,10.0]
[1674229493038,34.99,21.437,21.423,17.0]
[1674229493458,34.99,21.437,21.422,17.0]
[1674229494003,81.98081364,21.437,21.423,10.0]
[1674229494188,81.98081364,21.437,21.424,17.0]
[1674229496617,81.98081364,21.437,21.418,45.02]
[1674229496618,130.75957397,21.437,21.418,45.02]
[1674229496940,10.0,21.435,21.414,10.0]
[1674229497129,14.84,21.43,21.413,115.7006]
[1674229497343,35.01,21.429,21.413,115.7006]
[1674229497560,20.96,21.428,21.414,10.0]
[1674229497770,35.01,21.427,21.414,10.0]
[1674229500100,35.01,21.427,21.415,17.0]
[1674229500310,35.01,21.427,21.416,10.0]
[1674229500625,0.96,21.426,21.417,17.0]
[1674229500814,0.96,21.426,21.416,10.0]
[1674229500815,35.01,21.425,21.416,10.0]
[1674229501025,0.96,21.424,21.415,17.0]
[1674229501253,35.01,21.427,21.415,17.0]
[1674229501464,0.96,21.426,21.415,17.0]
[1674229502205,35.01,21.425,21.415,17.0]
[1674229502611,35.01,21.427,21.415,17.0]
[1674229503669,20.0,21.428,21.415,17.0]
[1674229503670,20.0,21.428,21.416,10.0]
[1674229503891,55.01,21.428,21.417,17.0]
[1674229505023,0.96,21.427,21.417,17.0]
[1674229505969,0.96,21.427,21.418,10.0]
[1674229506188,0.96,21.427,21.419,17.0]
[1674229507334,55.01,21.428,21.42,17.0]
[1674229507676,55.01,21.428,21.419,17.0]
[1674229507677,20.0,21.428,21.419,17.0]
[1674229507976,20.0,21.429,21.419,17.0]
[1674229508721,0.96,21.428,21.419,17.0]
[1674229508909,20.0,21.429,21.42,10.0]
[1674229509236,20.0,21.429,21.421,17.0]
[1674229510181,0.96,21.428,21.421,17.0]
[1674229511018,35.0,21.435,21.421,17.0]
[1674229511234,34.99,21.437,21.421,52.02]
[1674229511460,118.2548,21.439,21.421,52.02]
[1674229511648,20.0,21.438,21.421,52.02]
[1674229511863,10.0,21.436,21.421,52.02]
[1674229512294,51.65877311,21.435,21.421,52.02]
[1674229512506,0.96,21.434,21.421,17.0]
[1674229512917,86.65877311,21.433,21.417,109.2637]
[1674229513136,14.84,21.43,21.414,10.0]
[1674229513343,55.01,21.429,21.414,10.0]
[1674229513964,0.96,21.428,21.414,10.0]
[1674229514185,35.01,21.427,21.414,10.0]
[1674229514587,0.96,21.426,21.414,10.0]
[1674229515782,10.96,21.426,21.413,115.7006]
[1674229516167,0.96,21.426,21.413,115.7006]
[1674229516375,10.96,21.426,21.413,115.7006]
[1674229516589,0.96,21.426,21.413,115.7006]
[1674229516818,168.52877311,21.428,21.414,10.0]
[1674229517012,20.0,21.427,21.414,10.0]
[1674229517555,20.0,21.427,21.415,17.0]
[1674229517874,20.0,21.427,21.416,10.0]
[1674229518188,0.96,21.426,21.417,17.0]
[1674229519543,0.96,21.426,21.415,17.0]
[1674229519969,0.96,21.426,21.414,10.0]
[1674229520594,0.96,21.426,21.415,17.0]
[1674229521532,20.0,21.427,21.415,17.0]
[1674229521750,20.0,21.427,21.416,10.0]
[1674229521953,20.0,21.427,21.417,17.0]
[1674229522282,20.0,21.43,21.417,17.0]
[1674229522601,20.0,21.431,21.417,52.03]
[1674229522818,14.84,21.43,21.417,17.0]
[1674229523013,20.0,21.429,21.417,17.0]
[1674229523227,20.0,21.429,21.418,10.0]
[1674229523445,0.96,21.428,21.419,17.0]
[1674229524073,0.96,21.427,21.419,17.0]
[1674229524268,20.0,21.43,21.415,35.03]
[1674229524269,34.84,21.43,21.415,35.03]
[1674229524470,51.65877311,21.428,21.41,45.04]
[1674229524682,20.0,21.427,21.413,160.7306]
[1674229524892,0.96,21.426,21.413,160.7306]
[1674229525111,20.0,21.427,21.413,160.7306]
[1674229525313,20.0,21.428,21.413,160.7306]
[1674229525637,20.0,21.428,21.415,17.0]
[1674229526574,35.97,21.427,21.415,17.0]
[1674229526792,14.84,21.42,21.401,35.05]
[1674229527001,0.96,21.419,21.402,108.0841]
[1674229527224,0.96,21.419,21.408,45.04]
[1674229528053,0.96,21.419,21.409,17.0]
[1674229529414,0.96,21.419,21.41,35.04]
[1674229529624,0.96,21.419,21.411,27.0]
[1674229530379,0.96,21.419,21.41,10.0]
[1674229532255,20.96,21.419,21.408,10.0]
[1674229532478,35.02,21.418,21.408,10.0]
[1674229532671,20.0,21.417,21.408,10.0]
[1674229532885,20.0,21.417,21.407,10.0]
[1674229533219,20.0,21.418,21.407,10.0]
[1674229533433,35.03,21.417,21.407,10.0]
[1674229533836,35.03,21.417,21.405,10.0]
[1674229535315,35.03,21.417,21.402,10.0]
[1674229535526,35.03,21.417,21.403,9.0]
[1674229537635,17.0,21.416,21.403,9.0]
[1674229538036,35.03,21.415,21.403,9.0]
[1674229538671,17.0,21.414,21.403,9.0]
[1674229539095,17.0,21.416,21.403,9.0]
[1674229539305,35.03,21.417,21.403,9.0]
[1674229539637,20.0,21.418,21.403,9.0]
[1674229539850,20.0,21.418,21.403,44.05]
[1674229540245,20.0,21.418,21.404,17.0]
[1674229540456,55.02,21.418,21.405,10.0]
[1674229541306,89.35814058,21.418,21.405,10.0]
[1674229541508,17.96,21.417,21.405,10.0]
[1674229541716,35.03,21.416,21.405,10.0]
[1674229542667,17.0,21.415,21.405,10.0]
[1674229543108,17.0,21.416,21.405,10.0]
[1674229543317,35.03,21.415,21.402,10.0]
[1674229543503,17.0,21.414,21.402,10.0]
[1674229543831,14.84,21.41,21.4,2.0]
[1674229544034,20.96,21.409,21.4,2.0]
[1674229544795,20.0,21.408,21.4,2.0]
[1674229545100,0.96,21.407,21.4,2.0]
[1674229546763,0.96,21.407,21.4,12.0]
[1674229548025,0.96,21.407,21.4,2.0]
[1674229548762,20.0,21.41,21.4,2.0]
[1674229549196,20.0,21.411,21.4,2.0]
[1674229553197,34.33814058,21.413,21.4,2.0]
[1674229553410,35.02,21.418,21.401,45.05]
[1674229553725,35.01,21.424,21.403,10.0]
[1674229553943,35.01,21.424,21.404,52.05]
[1674229554147,35.01,21.424,21.405,10.0]
[1674229554362,35.01,21.424,21.406,17.0]
[1674229555207,10.0,21.423,21.407,10.0]
[1674229555398,35.02,21.422,21.407,10.0]
[1674229556683,0.96,21.416,21.407,10.0]
[1674229558673,35.02,21.422,21.405,10.0]
[1674229558990,20.0,21.421,21.405,10.0]
[1674229559188,35.02,21.42,21.405,10.0]
[1674229559399,20.0,21.419,21.405,10.0]
[1674229559932,35.02,21.418,21.406,17.0]
[1674229560125,20.0,21.417,21.405,10.0]
[1674229560560,0.96,21.416,21.406,17.0]
[1674229560768,0.96,21.416,21.407,10.0]
[1674229561189,20.0,21.418,21.407,10.0]
[1674229561605,20.0,21.418,21.408,17.0]
[1674229561807,20.0,21.42,21.408,17.0]
[1674229562240,20.0,21.42,21.409,10.0]
[1674229562441,35.01,21.425,21.41,31.7]
[1674229562670,35.01,21.425,21.411,10.0]
[1674229562980,35.01,21.427,21.412,17.0]
[1674229563193,35.01,21.427,21.413,10.0]
[1674229563406,35.0,21.43,21.414,17.0]
[1674229563641,20.0,21.427,21.414,17.0]
[1674229563848,20.0,21.427,21.414,52.03]
[1674229564246,20.0,21.43,21.415,10.0]
[1674229564478,35.01,21.429,21.414,35.03]
[1674229564795,10.0,21.427,21.411,10.0]
[1674229565011,55.97,21.426,21.411,10.0]
[1674229565318,103.50885328,21.426,21.411,10.0]
[1674229565516,47.53885328,21.425,21.411,10.0]
[1674229565729,55.01,21.424,21.411,10.0]
[1674229565930,55.01,21.424,21.412,17.0]
[1674229566583,106.66997702,21.424,21.412,17.0]
[1674229566766,106.66997702,21.424,21.408,119.9717]
[1674229566978,10.0,21.423,21.408,119.9717]
[1674229567188,20.0,21.422,21.41,17.0]
[1674229567828,106.67997702,21.422,21.408,119.9717]
[1674229568903,106.67997702,21.422,21.408,109.9717]
[1674229569120,17.0,21.421,21.406,109.607]
[1674229569312,79.86,21.42,21.401,163.4261]
[1674229569506,17.96,21.419,21.401,128.3761]
[1674229569713,55.02,21.418,21.401,128.3761]
[1674229570150,0.96,21.417,21.402,10.0]
[1674229570360,35.03,21.416,21.402,10.0]
[1674229570584,0.96,21.415,21.402,10.0]
[1674229571001,35.03,21.414,21.401,128.3761]
[1674229571312,35.03,21.415,21.401,118.3761]
[1674229571623,10.0,21.414,21.4,2.0]
[1674229571842,55.03,21.413,21.4,2.0]
[1674229572157,14.84,21.41,21.4,2.0]
[1674229572343,83.0,21.409,21.4,2.0]
[1674229572799,56.0,21.409,21.4,2.0]
[1674229573500,20.96,21.409,21.4,2.0]
[1674229573710,20.0,21.408,21.4,2.0]
[1674229573933,35.04,21.41,21.4,2.0]
[1674229574130,20.0,21.409,21.4,2.0]
[1674229574757,20.0,21.411,21.4,2.0]
[1674229575395,35.03,21.416,21.4,2.0]
[1674229575631,35.03,21.416,21.401,35.05]
[1674229575817,35.03,21.416,21.402,17.0]
[1674229576021,111.9533,21.417,21.4,19.0]
[1674229576236,111.9533,21.417,21.401,45.05]
[1674229576447,111.9533,21.417,21.402,17.0]
[1674229576762,35.03,21.416,21.402,17.0]
[1674229577290,10.96,21.415,21.4,2.0]
[1674229577502,52.03,21.414,21.4,2.0]
[1674229577714,30.0,21.413,21.4,2.0]
[1674229578036,35.03,21.412,21.4,2.0]
[1674229578247,20.0,21.411,21.4,2.0]
[1674229578448,35.04,21.41,21.4,2.0]
[1674229578772,35.03,21.414,21.4,16.7]
[1674229579097,146.9833,21.417,21.402,10.0]
[1674229579306,146.9833,21.417,21.403,17.0]
[1674229579694,35.03,21.417,21.403,17.0]
[1674229579904,35.02,21.422,21.404,10.0]
[1674229580137,20.0,21.421,21.405,17.0]
[1674229580463,35.02,21.42,21.406,10.0]
[1674229580769,20.0,21.419,21.407,17.0]
[1674229581294,35.02,21.423,21.407,17.0]
[1674229581496,35.02,21.423,21.407,52.04]
[1674229581698,35.01,21.427,21.407,52.04]
[1674229581909,35.01,21.427,21.41,14.77]
[1674229582119,35.01,21.427,21.411,27.0]
[1674229582558,0.96,21.426,21.411,27.0]
[1674229582753,35.01,21.425,21.411,27.0]
[1674229582960,47.53885328,21.426,21.411,27.0]
[1674229583166,30.0,21.425,21.411,17.0]
[1674229583388,35.01,21.424,21.41,17.0]
[1674229583598,20.0,21.423,21.409,17.0]
[1674229584435,35.02,21.422,21.409,17.0]
[1674229584762,20.0,21.421,21.409,17.0]
[1674229584944,55.02,21.423,21.409,17.0]
[1674229585159,55.02,21.423,21.407,10.0]
[1674229585372,102.55885328,21.423,21.407,10.0]
[1674229585704,35.02,21.423,21.407,10.0]
[1674229585913,82.54885328,21.427,21.408,35.04]
[1674229586112,82.54885328,21.427,21.409,10.0]
[1674229586328,20.0,21.426,21.409,10.0]
[1674229586527,10.0,21.424,21.409,10.0]
[1674229586737,55.02,21.423,21.409,10.0]
[1674229587273,35.02,21.423,21.409,10.0]
[1674229587594,47.53885328,21.426,21.41,52.04]
[1674229587789,35.01,21.427,21.411,10.0]
[1674229587998,35.01,21.427,21.412,17.0]
[1674229588548,0.96,21.426,21.412,17.0]
[1674229588961,35.01,21.425,21.412,17.0]
[1674229589367,35.01,21.427,21.412,17.0]
[1674229589582,0.96,21.426,21.412,17.0]
[1674229590732,0.96,21.426,21.413,10.0]
[1674229590733,35.01,21.425,21.413,10.0]
[1674229590942,35.01,21.427,21.413,10.0]
[1674229591169,0.96,21.426,21.414,17.0]
[1674229591691,35.01,21.427,21.414,17.0]
[1674229591906,51.65997702,21.431,21.414,17.0]
[1674229591907,35.0,21.43,21.415,10.0]
[1674229592214,20.0,21.427,21.416,17.0]
[1674229592433,20.0,21.427,21.417,10.0]
[1674229592761,20.0,21.427,21.418,17.0]
[1674229593076,0.96,21.426,21.418,17.0]
[1674229593270,20.0,21.427,21.418,17.0]
[1674229593482,20.0,21.433,21.418,17.0]
[1674229593681,35.0,21.432,21.418,17.0]
[1674229593894,20.0,21.431,21.418,17.0]
[1674229594103,35.0,21.43,21.418,17.0]
[1674229594317,20.0,21.429,21.418,17.0]
[1674229594534,20.0,21.429,21.416,17.0]
[1674229594839,82.54885328,21.428,21.416,17.0]
[1674229595161,20.0,21.427,21.416,17.0]
[1674229597988,55.01,21.427,21.416,17.0]
[1674229598212,20.0,21.427,21.416,17.0]
[1674229598848,20.0,21.432,21.417,10.0]
[1674229599051,35.0,21.431,21.418,17.0]
[1674229599263,20.0,21.43,21.418,17.0]
[1674229599487,35.97,21.429,21.418,17.0]
[1674229599681,20.0,21.428,21.418,17.0]
[1674229600098,0.96,21.427,21.418,17.0]
[1674229600630,0.96,21.427,21.415,10.0]
[1674229600840,48.49885328,21.427,21.415,10.0]
[1674229601077,35.01,21.426,21.415,10.0]
[1674229601460,0.96,21.425,21.415,10.0]
[1674229602621,0.96,21.425,21.416,17.0]
[1674229602836,0.96,21.425,21.417,10.0]
[1674229603055,0.96,21.424,21.418,17.0]
[1674229603364,20.0,21.427,21.418,17.0]
[1674229603564,0.96,21.426,21.418,17.0]
[1674229603772,35.0,21.433,21.418,17.0]
[1674229603988,34.99,21.437,21.42,19.82]
[1674229604191,130.4912,21.45,21.421,52.02]
[1674229604192,143.046,21.438,21.421,52.02]
[1674229604601,143.046,21.438,21.422,10.0]
[1674229604820,143.046,21.438,21.423,17.0]
[1674229605034,0.96,21.437,21.423,17.0]
[1674229605268,20.96,21.437,21.423,17.0]
[1674229605662,20.96,21.437,21.424,10.0]
[1674229605868,20.0,21.437,21.425,17.0]
[1674229606209,20.0,21.437,21.426,10.0]
[1674229606424,20.0,21.437,21.427,17.0]
[1674229606633,20.0,21.438,21.428,10.0]
[1674229606837,20.0,21.438,21.429,17.0]
[1674229607468,20.0,21.438,21.425,35.01]
[1674229607678,20.0,21.438,21.423,35.02]
[1674229607888,10.0,21.437,21.422,45.02]
[1674229608084,57.53885328,21.437,21.422,10.0]
[1674229608925,0.96,21.436,21.423,17.0]
[1674229609576,35.95,21.436,21.423,17.0]
[1674229609892,0.96,21.436,21.423,17.0]
[1674229613359,0.96,21.436,21.421,35.02]
[1674229613546,0.96,21.436,21.42,45.02]
[1674229613885,10.0,21.434,21.42,45.02]
[1674229614193,0.96,21.433,21.42,45.02]
[1674229614408,35.0,21.432,21.414,45.03]
[1674229614593,20.0,21.431,21.411,45.04]
[1674229614811,45.0,21.43,21.411,10.0]
[1674229615033,20.96,21.429,21.411,10.0]
[1674229615236,35.01,21.428,21.411,10.0]
[1674229615447,20.0,21.427,21.411,10.0]
[1674229615657,0.96,21.426,21.411,10.0]
[1674229616311,0.96,21.426,21.414,17.0]
[1674229617155,0.96,21.426,21.412,45.03]
[1674229617347,0.96,21.426,21.411,10.0]
[1674229617553,10.96,21.426,21.411,10.0]
[1674229617761,35.01,21.425,21.411,10.0]
[1674229618311,0.96,21.424,21.411,10.0]
[1674229618499,0.96,21.424,21.41,118.0723]
[1674229618705,30.96,21.424,21.408,35.04]
[1674229618931,35.02,21.423,21.405,35.05]
[1674229619147,30.96,21.422,21.405,35.05]
[1674229619362,35.02,21.421,21.405,35.05]
[1674229619549,67.6,21.42,21.402,129.389]
[1674229619888,35.02,21.419,21.402,129.389]
[1674229620092,20.96,21.418,21.402,164.439]
[1674229620302,20.96,21.418,21.402,129.389]
[1674229620490,20.96,21.418,21.405,17.0]
[1674229620701,35.03,21.417,21.405,17.0]
[1674229621246,20.0,21.418,21.405,17.0]
[1674229621445,20.0,21.418,21.403,10.0]
[1674229621659,10.0,21.417,21.403,10.0]
[1674229621869,45.03,21.417,21.402,129.389]
[1674229622398,35.03,21.417,21.402,129.389]
[1674229622593,35.03,21.417,21.403,35.05]
[1674229622808,20.0,21.418,21.402,164.439]
[1674229623033,20.0,21.418,21.403,17.0]
[1674229624073,17.0,21.417,21.402,164.439]
[1674229624286,35.03,21.416,21.402,129.389]
[1674229624490,35.03,21.417,21.402,129.389]
[1674229624815,35.03,21.417,21.402,119.389]
[1674229625136,20.0,21.416,21.401,10.0]
[1674229625346,52.03,21.415,21.401,10.0]
[1674229625546,20.0,21.414,21.401,10.0]
[1674229626278,20.0,21.414,21.4,2.0]
[1674229626688,10.0,21.413,21.4,2.0]
[1674229626898,20.0,21.412,21.4,2.0]
[1674229627964,55.03,21.412,21.4,2.0]
[1674229628183,10.0,21.411,21.4,2.0]